[Event "*** Titled Tuesday Blitz"]
[Site "Chess.com"]
[Date "2021.03.30"]
[Round "4"]
[White "poneis_malditos"]
[Black "Grieve72"]
[Result "0-1"]
[WhiteElo "2295"]
[BlackElo "2477"]
[TimeControl "180+1"]
[EndTime "10:40:47 PDT"]
[Termination "Grieve72 won on time"]

1. e4 {[%clk 0:03:00.9]} 1... c5 {[%clk 0:02:59.6]} 2. Nc3 {[%clk 0:03:00.2]}
2... e6 {[%clk 0:02:58.5]} 3. d3 {[%clk 0:02:58.9]} 3... d5 {[%clk 0:02:56.5]}
4. exd5 {[%clk 0:02:59.3]} 4... exd5 {[%clk 0:02:57.4]} 5. g3 {[%clk 0:02:59.8]}
5... Nf6 {[%clk 0:02:56]} 6. Bg2 {[%clk 0:03:00.3]} 6... Nc6 {[%clk 0:02:56]} 7.
Nf3 {[%clk 0:03:00.8]} 7... Bg4 {[%clk 0:02:46.1]} 8. Ne2 {[%clk 0:02:59.6]}
8... d4 {[%clk 0:02:42.5]} 9. O-O {[%clk 0:02:58.5]} 9... Bd6 {[%clk 0:02:42.3]}
10. Bf4 {[%clk 0:02:56.1]} 10... O-O {[%clk 0:02:41.6]} 11. h3 {[%clk
0:02:55.2]} 11... Bh5 {[%clk 0:02:36.8]} 12. g4 {[%clk 0:02:55.5]} 12... Bg6
{[%clk 0:02:37]} 13. Qd2 {[%clk 0:02:52.7]} 13... Nd5 {[%clk 0:02:32.2]} 14.
Bxd6 {[%clk 0:02:34.5]} 14... Qxd6 {[%clk 0:02:33.1]} 15. Nh4 {[%clk 0:02:30.6]}
15... Rfe8 {[%clk 0:02:01.2]} 16. Ng3 {[%clk 0:02:03.5]} 16... Nf4 {[%clk
0:01:55.2]} 17. Nhf5 {[%clk 0:01:43.7]} 17... Qc7 {[%clk 0:01:51.6]} 18. Rfe1
{[%clk 0:01:31.1]} 18... Nxg2 {[%clk 0:01:16.6]} 19. Kxg2 {[%clk 0:01:32]} 19...
Ne5 {[%clk 0:01:17]} 20. f4 {[%clk 0:01:08.4]} 20... Qc6+ {[%clk 0:01:14.2]} 21.
Ne4 {[%clk 0:01:09]} 21... Bxf5 {[%clk 0:01:09.4]} 22. gxf5 {[%clk 0:01:02.4]}
22... Nd7 {[%clk 0:01:06.5]} 23. Kh2 {[%clk 0:00:45.1]} 23... Nf6 {[%clk
0:00:59.3]} 24. Qg2 {[%clk 0:00:42.8]} 24... Kf8 {[%clk 0:00:48.2]} 25. Rg1
{[%clk 0:00:40.9]} 25... g6 {[%clk 0:00:26.5]} 26. Rae1 {[%clk 0:00:39]} 26...
b6 {[%clk 0:00:15]} 27. fxg6 {[%clk 0:00:33.4]} 27... hxg6 {[%clk 0:00:14.5]}
28. f5 {[%clk 0:00:25.4]} 28... Nxe4 {[%clk 0:00:11]} 29. dxe4 {[%clk
0:00:23.3]} 29... Kg7 {[%clk 0:00:09.6]} 30. Qg5 {[%clk 0:00:20.5]} 30... Qf6
{[%clk 0:00:06.8]} 31. fxg6 {[%clk 0:00:18.8]} 31... Qxg5 {[%clk 0:00:05.5]} 32.
Rxg5 {[%clk 0:00:19.7]} 32... fxg6 {[%clk 0:00:05.6]} 33. Rd5 {[%clk 0:00:18.1]}
33... Re7 {[%clk 0:00:04.9]} 34. e5 {[%clk 0:00:17.9]} 34... Rae8 {[%clk
0:00:04.9]} 35. e6 {[%clk 0:00:18.3]} 35... Rxe6 {[%clk 0:00:04.1]} 36. Rd7+
{[%clk 0:00:18.9]} 36... Kf6 {[%clk 0:00:03.9]} 37. Rxe6+ {[%clk 0:00:18.7]}
37... Rxe6 {[%clk 0:00:04.8]} 38. Rxa7 {[%clk 0:00:18.5]} 38... Re2+ {[%clk
0:00:05.3]} 39. Kg3 {[%clk 0:00:18.6]} 39... Rxc2 {[%clk 0:00:06.2]} 40. b3
{[%clk 0:00:19.1]} 40... Ke5 {[%clk 0:00:03.8]} 41. Kf3 {[%clk 0:00:19.4]} 41...
Rc3+ {[%clk 0:00:02.1]} 42. Ke2 {[%clk 0:00:18.5]} 42... Rxh3 {[%clk 0:00:02.6]}
43. Rb7 {[%clk 0:00:18.2]} 43... Rh2+ {[%clk 0:00:02.5]} 44. Kd3 {[%clk
0:00:18.8]} 44... Rxa2 {[%clk 0:00:02.2]} 45. Rxb6 {[%clk 0:00:19.7]} 45... Rh2
{[%clk 0:00:02.5]} 46. Rxg6 {[%clk 0:00:19.2]} 46... Rh3+ {[%clk 0:00:03]} 47.
Kc2 {[%clk 0:00:19.2]} 47... Kd5 {[%clk 0:00:02.4]} 48. Rg5+ {[%clk 0:00:19.3]}
48... Kc6 {[%clk 0:00:02.9]} 49. Rg8 {[%clk 0:00:13.8]} 49... Rh2+ {[%clk
0:00:02.5]} 50. Kd3 {[%clk 0:00:13.3]} 50... Rh3+ {[%clk 0:00:03.4]} 51. Kc2
{[%clk 0:00:13.4]} 51... Rc3+ {[%clk 0:00:04.1]} 52. Kb2 {[%clk 0:00:13.5]}
52... Kd5 {[%clk 0:00:04.2]} 53. Re8 {[%clk 0:00:13.6]} 53... Re3 {[%clk
0:00:03.5]} 54. Rc8 {[%clk 0:00:10.3]} 54... Rg3 {[%clk 0:00:02.7]} 55. Kc2
{[%clk 0:00:09.1]} 55... Rc3+ {[%clk 0:00:02.3]} 56. Kb2 {[%clk 0:00:08.9]}
56... Rh3 {[%clk 0:00:02.8]} 57. Kc2 {[%clk 0:00:08.6]} 57... Rh2+ {[%clk
0:00:03.3]} 58. Kd3 {[%clk 0:00:08]} 58... Rh3+ {[%clk 0:00:03.7]} 59. Kc2
{[%clk 0:00:07.9]} 59... Kd6 {[%clk 0:00:04.3]} 60. Rd8+ {[%clk 0:00:07.2]}
60... Kc6 {[%clk 0:00:04.3]} 61. Rc8+ {[%clk 0:00:07.6]} 61... Kb5 {[%clk
0:00:04.7]} 62. Rb8+ {[%clk 0:00:08]} 62... Kc6 {[%clk 0:00:04.8]} 63. Rc8+
{[%clk 0:00:08]} 63... Kd6 {[%clk 0:00:05.1]} 64. Rd8+ {[%clk 0:00:08]} 64...
Ke5 {[%clk 0:00:05.5]} 65. Rc8 {[%clk 0:00:07.9]} 65... Kd5 {[%clk 0:00:05.9]}
66. Rd8+ {[%clk 0:00:08]} 66... Ke4 {[%clk 0:00:06.2]} 67. Rc8 {[%clk
0:00:08.2]} 67... Rh2+ {[%clk 0:00:06.1]} 68. Kb1 {[%clk 0:00:04.3]} 68... d3
{[%clk 0:00:05.5]} 69. Rxc5 {[%clk 0:00:04]} 69... Rh1+ {[%clk 0:00:05.8]} 70.
Kb2 {[%clk 0:00:03.4]} 70... d2 {[%clk 0:00:05.5]} 71. Rc4+ {[%clk 0:00:02.9]}
71... Ke5 {[%clk 0:00:05.1]} 0-1

[Event "*** Titled Tuesday Blitz"]
[Site "Chess.com"]
[Date "2021.03.30"]
[Round "4"]
[White "IljaJoke"]
[Black "esapunov"]
[Result "0-1"]
[WhiteElo "2508"]
[BlackElo "2733"]
[TimeControl "180+1"]
[EndTime "10:40:54 PDT"]
[Termination "esapunov won on time"]

1. e4 {[%clk 0:03:00.9]} 1... c5 {[%clk 0:02:59.6]} 2. Nf3 {[%clk 0:03:01.1]}
2... d6 {[%clk 0:02:59.9]} 3. d4 {[%clk 0:03:01.5]} 3... cxd4 {[%clk 0:03:00]}
4. Nxd4 {[%clk 0:03:02.4]} 4... Nf6 {[%clk 0:03:00.3]} 5. Nc3 {[%clk 0:03:02.9]}
5... Nc6 {[%clk 0:03:00.9]} 6. Nd5 {[%clk 0:03:02.1]} 6... Nxd5 {[%clk
0:02:54.7]} 7. exd5 {[%clk 0:03:03]} 7... Qa5+ {[%clk 0:02:54.8]} 8. Bd2 {[%clk
0:02:58.9]} 8... Qxd5 {[%clk 0:02:54.7]} 9. Nb5 {[%clk 0:02:59.6]} 9... Qe6+
{[%clk 0:02:54.9]} 10. Be2 {[%clk 0:02:59.1]} 10... Qd7 {[%clk 0:02:55.7]} 11.
c4 {[%clk 0:02:56.6]} 11... e6 {[%clk 0:02:48.6]} 12. Bf4 {[%clk 0:02:54]} 12...
e5 {[%clk 0:02:41.8]} 13. Be3 {[%clk 0:02:53.9]} 13... Be7 {[%clk 0:02:39.7]}
14. O-O {[%clk 0:02:53.4]} 14... O-O {[%clk 0:02:38.6]} 15. Qd2 {[%clk
0:02:48.1]} 15... Rd8 {[%clk 0:02:36.9]} 16. Rad1 {[%clk 0:02:43.9]} 16... b6
{[%clk 0:02:32.2]} 17. f4 {[%clk 0:02:37.1]} 17... Bb7 {[%clk 0:02:27.8]} 18.
Bf3 {[%clk 0:02:24.8]} 18... Na5 {[%clk 0:02:04.8]} 19. b3 {[%clk 0:02:10.5]}
19... e4 {[%clk 0:02:03.7]} 20. Be2 {[%clk 0:02:08.2]} 20... f5 {[%clk
0:01:37.7]} 21. Nc3 {[%clk 0:02:07]} 21... Bf6 {[%clk 0:01:29]} 22. Nd5 {[%clk
0:01:53.7]} 22... Bxd5 {[%clk 0:01:27.7]} 23. Qxd5+ {[%clk 0:01:51.6]} 23... Kh8
{[%clk 0:01:27.4]} 24. h3 {[%clk 0:01:42.2]} 24... Nc6 {[%clk 0:01:25.4]} 25. g4
{[%clk 0:01:36.2]} 25... Ne7 {[%clk 0:01:25.2]} 26. Qd2 {[%clk 0:01:31.1]} 26...
g6 {[%clk 0:01:22.3]} 27. g5 {[%clk 0:01:27]} 27... Bg7 {[%clk 0:01:22.3]} 28.
h4 {[%clk 0:01:27.6]} 28... d5 {[%clk 0:01:19.7]} 29. cxd5 {[%clk 0:01:23.1]}
29... Qxd5 {[%clk 0:01:15.6]} 30. Qb4 {[%clk 0:01:19.8]} 30... Qb7 {[%clk
0:01:07.3]} 31. Bc4 {[%clk 0:01:08.3]} 31... Nc6 {[%clk 0:00:47.5]} 32. Qa4
{[%clk 0:00:48.1]} 32... Nd4 {[%clk 0:00:24.7]} 33. Ba6 {[%clk 0:00:43.7]} 33...
Nf3+ {[%clk 0:00:24.5]} 34. Kf2 {[%clk 0:00:41.5]} 34... Qe7 {[%clk 0:00:24.4]}
35. h5 {[%clk 0:00:39.9]} 35... gxh5 {[%clk 0:00:24.1]} 36. Be2 {[%clk
0:00:36.6]} 36... Rac8 {[%clk 0:00:19.7]} 37. Rxd8+ {[%clk 0:00:32.6]} 37...
Qxd8 {[%clk 0:00:18.7]} 38. Bxf3 {[%clk 0:00:21.3]} 38... exf3 {[%clk
0:00:17.4]} 39. Qb5 {[%clk 0:00:09.9]} 39... Qf8 {[%clk 0:00:11.8]} 40. Kxf3
{[%clk 0:00:09.3]} 40... h4 {[%clk 0:00:12.2]} 41. Rh1 {[%clk 0:00:08.8]} 41...
Re8 {[%clk 0:00:11.6]} 42. Rxh4 {[%clk 0:00:07.7]} 42... Qe7 {[%clk 0:00:12]}
43. Qd3 {[%clk 0:00:07.9]} 43... Qe6 {[%clk 0:00:11.1]} 44. Kf2 {[%clk
0:00:05.4]} 44... Kg8 {[%clk 0:00:08.7]} 45. Rh3 {[%clk 0:00:04.7]} 45... b5
{[%clk 0:00:08.3]} 46. Rf3 {[%clk 0:00:03.4]} 46... a5 {[%clk 0:00:08.3]} 47.
Kg3 {[%clk 0:00:03.8]} 47... b4 {[%clk 0:00:08.7]} 48. Bf2 {[%clk 0:00:04.1]}
48... h6 {[%clk 0:00:08.7]} 49. Re3 {[%clk 0:00:04.3]} 49... Qf7 {[%clk
0:00:08.1]} 50. Rxe8+ {[%clk 0:00:04.6]} 50... Qxe8 {[%clk 0:00:08.4]} 51. Qxf5
{[%clk 0:00:05.2]} 51... Qe2 {[%clk 0:00:05.6]} 52. gxh6 {[%clk 0:00:03.7]}
52... Bxh6 {[%clk 0:00:05.6]} 53. Bd4 {[%clk 0:00:03.8]} 53... Qe1+ {[%clk
0:00:04.8]} 54. Bf2 {[%clk 0:00:02.6]} 54... Qe2 {[%clk 0:00:04.2]} 55. Qg6+
{[%clk 0:00:02.9]} 55... Bg7 {[%clk 0:00:04]} 56. Qg4 {[%clk 0:00:03.4]} 56...
Qe4 {[%clk 0:00:03.8]} 57. f5 {[%clk 0:00:02.6]} 57... Qd3+ {[%clk 0:00:04]} 58.
Qf3 {[%clk 0:00:02.4]} 58... Be5+ {[%clk 0:00:04.3]} 59. Kg2 {[%clk 0:00:02]}
59... Qd6 {[%clk 0:00:02.9]} 60. Qg4+ {[%clk 0:00:01.9]} 60... Kf8 {[%clk
0:00:03.1]} 61. Bg3 {[%clk 0:00:02.6]} 61... Bxg3 {[%clk 0:00:02.8]} 62. Qxg3
{[%clk 0:00:02.7]} 62... Qd5+ {[%clk 0:00:03.4]} 63. Qf3 {[%clk 0:00:03.1]}
63... Qd2+ {[%clk 0:00:04]} 64. Kg3 {[%clk 0:00:03.5]} 64... Qxa2 {[%clk
0:00:04]} 65. f6 {[%clk 0:00:03.5]} 65... Qc2 {[%clk 0:00:03]} 66. Kg4 {[%clk
0:00:03.9]} 66... Qc5 {[%clk 0:00:02.6]} 67. Qe4 {[%clk 0:00:02.5]} 67... Kf7
{[%clk 0:00:02.4]} 68. Qb7+ {[%clk 0:00:02]} 68... Kxf6 {[%clk 0:00:02.6]} 69.
Qf3+ {[%clk 0:00:01.8]} 69... Ke6 {[%clk 0:00:02.8]} 70. Qf8 {[%clk 0:00:01.9]}
70... Qxf8 {[%clk 0:00:01.2]} 71. Kh5 {[%clk 0:00:01.8]} 71... Kd5 {[%clk
0:00:01.8]} 0-1

[Event "*** Titled Tuesday Blitz"]
[Site "Chess.com"]
[Date "2021.03.30"]
[Round "4"]
[White "GMKrikor"]
[Black "DrVitman"]
[Result "1-0"]
[WhiteElo "2832"]
[BlackElo "2617"]
[TimeControl "180+1"]
[EndTime "10:40:55 PDT"]
[Termination "GMKrikor won by resignation"]

1. e4 {[%clk 0:03:00.9]} 1... c5 {[%clk 0:02:59.6]} 2. Nf3 {[%clk 0:03:00.7]}
2... Nc6 {[%clk 0:02:59.7]} 3. Bb5 {[%clk 0:02:59.1]} 3... g6 {[%clk 0:02:59.2]}
4. O-O {[%clk 0:02:58.7]} 4... Bg7 {[%clk 0:02:59.3]} 5. Re1 {[%clk 0:02:59.4]}
5... e5 {[%clk 0:02:59.4]} 6. a3 {[%clk 0:02:59.4]} 6... Nge7 {[%clk 0:02:56.7]}
7. b4 {[%clk 0:02:59.3]} 7... d6 {[%clk 0:02:57.1]} 8. bxc5 {[%clk 0:02:57]}
8... dxc5 {[%clk 0:02:58]} 9. d3 {[%clk 0:02:55.7]} 9... O-O {[%clk 0:02:57.5]}
10. Bc4 {[%clk 0:02:52.9]} 10... h6 {[%clk 0:02:31.3]} 11. Nc3 {[%clk
0:02:50.8]} 11... Kh7 {[%clk 0:02:31.1]} 12. Nd5 {[%clk 0:02:42.7]} 12... Be6
{[%clk 0:02:29.8]} 13. Ne3 {[%clk 0:02:38.8]} 13... Qd7 {[%clk 0:02:25.1]} 14.
Rb1 {[%clk 0:02:35.3]} 14... b6 {[%clk 0:02:23]} 15. Bd2 {[%clk 0:02:33.8]}
15... f5 {[%clk 0:01:42.1]} 16. Bxe6 {[%clk 0:02:27.9]} 16... Qxe6 {[%clk
0:01:43]} 17. Nc4 {[%clk 0:02:21.4]} 17... f4 {[%clk 0:01:41]} 18. a4 {[%clk
0:02:14.2]} 18... Rab8 {[%clk 0:01:40.7]} 19. Bc3 {[%clk 0:02:13.3]} 19... g5
{[%clk 0:01:33.2]} 20. h3 {[%clk 0:02:13.1]} 20... Ng6 {[%clk 0:01:25.4]} 21.
Rb5 {[%clk 0:01:53.8]} 21... Bf6 {[%clk 0:00:40.3]} 22. Nh2 {[%clk 0:01:37.1]}
22... Bd8 {[%clk 0:00:31.5]} 23. Qg4 {[%clk 0:01:31.8]} 23... Qe7 {[%clk
0:00:28.5]} 24. Qh5 {[%clk 0:01:24.6]} 24... Kg7 {[%clk 0:00:23.7]} 25. Reb1
{[%clk 0:01:14.3]} 25... Bc7 {[%clk 0:00:22]} 26. Ng4 {[%clk 0:01:10]} 26... Rh8
{[%clk 0:00:21.6]} 27. a5 {[%clk 0:01:10.7]} 27... Qd8 {[%clk 0:00:15.7]} 28.
axb6 {[%clk 0:01:06.3]} 28... axb6 {[%clk 0:00:16.6]} 29. Ra1 {[%clk 0:00:54.5]}
29... Ra8 {[%clk 0:00:16.2]} 30. Rxa8 {[%clk 0:00:34.6]} 30... Qxa8 {[%clk
0:00:17.1]} 31. Rxb6 {[%clk 0:00:35.1]} 31... Bxb6 {[%clk 0:00:15.8]} 32. Ngxe5
{[%clk 0:00:34.8]} 32... Ncxe5 {[%clk 0:00:13.6]} 33. Nxe5 {[%clk 0:00:33.9]}
33... Nxe5 {[%clk 0:00:10.2]} 34. Bxe5+ {[%clk 0:00:33.4]} 34... Kf8 {[%clk
0:00:09.5]} 35. Bxh8 {[%clk 0:00:23.2]} 35... Qc6 {[%clk 0:00:09.5]} 36. e5
{[%clk 0:00:18.7]} 36... c4 {[%clk 0:00:09.5]} 37. Bf6 {[%clk 0:00:18.8]} 37...
cxd3 {[%clk 0:00:08.4]} 38. Qxh6+ {[%clk 0:00:19.3]} 38... Kf7 {[%clk
0:00:08.6]} 39. Qg7+ {[%clk 0:00:18.3]} 39... Ke6 {[%clk 0:00:08.9]} 40. Qg8+
{[%clk 0:00:14.6]} 40... Kf5 {[%clk 0:00:08.7]} 41. Qh7+ {[%clk 0:00:15]} 41...
Ke6 {[%clk 0:00:08.8]} 42. Qxd3 {[%clk 0:00:15.2]} 42... Qc5 {[%clk 0:00:09.3]}
43. Qe2 {[%clk 0:00:12.5]} 43... Qc3 {[%clk 0:00:06.1]} 44. Bxg5 {[%clk
0:00:10.4]} 44... f3 {[%clk 0:00:06.3]} 45. Qxf3 {[%clk 0:00:08.7]} 45... Qxe5
{[%clk 0:00:06]} 46. Be3 {[%clk 0:00:07.4]} 46... Bc7 {[%clk 0:00:05.3]} 47. g3
{[%clk 0:00:06.7]} 47... Qa1+ {[%clk 0:00:05.3]} 48. Kg2 {[%clk 0:00:07]} 48...
Qa5 {[%clk 0:00:04.6]} 49. Qe4+ {[%clk 0:00:07]} 49... Kf7 {[%clk 0:00:04.8]}
50. Bf4 {[%clk 0:00:07.1]} 50... Bd8 {[%clk 0:00:05.3]} 51. c4 {[%clk
0:00:06.4]} 51... Qb6 {[%clk 0:00:05.4]} 52. Qd5+ {[%clk 0:00:06.5]} 52... Ke8
{[%clk 0:00:03.6]} 53. c5 {[%clk 0:00:06.8]} 53... Qg6 {[%clk 0:00:03.4]} 54. c6
{[%clk 0:00:06.7]} 54... Qg7 {[%clk 0:00:03]} 55. Qf3 {[%clk 0:00:07.6]} 55...
Qf7 {[%clk 0:00:02.5]} 56. c7 {[%clk 0:00:06.5]} 56... Bxc7 {[%clk 0:00:01.8]}
57. Qa8+ {[%clk 0:00:06.5]} 57... Kd7 {[%clk 0:00:01.8]} 58. Qb7 {[%clk
0:00:06.2]} 58... Qc4 {[%clk 0:00:02]} 59. Qxc7+ {[%clk 0:00:06.4]} 59... Qxc7
{[%clk 0:00:02.9]} 60. Bxc7 {[%clk 0:00:07]} 60... Kxc7 {[%clk 0:00:03.7]} 61.
f4 {[%clk 0:00:07.5]} 61... Kd6 {[%clk 0:00:04.6]} 62. g4 {[%clk 0:00:08.4]}
62... Ke6 {[%clk 0:00:05.3]} 63. Kg3 {[%clk 0:00:09.3]} 63... Kf6 {[%clk
0:00:06.2]} 64. h4 {[%clk 0:00:10.2]} 64... Kg6 {[%clk 0:00:07.1]} 65. h5+
{[%clk 0:00:11.1]} 65... Kh6 {[%clk 0:00:08]} 66. Kh4 {[%clk 0:00:12]} 66... Kg7
{[%clk 0:00:08.9]} 67. g5 {[%clk 0:00:12.9]} 67... Kh7 {[%clk 0:00:09.8]} 68.
Kg4 {[%clk 0:00:13.8]} 68... Kg7 {[%clk 0:00:10.7]} 69. f5 {[%clk 0:00:14.7]}
69... Kh7 {[%clk 0:00:11.6]} 70. h6 {[%clk 0:00:15.4]} 70... Kg8 {[%clk
0:00:11.3]} 71. Kh5 {[%clk 0:00:16.3]} 71... Kf7 {[%clk 0:00:12.2]} 72. f6
{[%clk 0:00:14.9]} 72... Kg8 {[%clk 0:00:13.1]} 73. Kg6 {[%clk 0:00:15.5]} 73...
Kh8 {[%clk 0:00:13.6]} 74. Kf7 {[%clk 0:00:15.8]} 74... Kh7 {[%clk 0:00:13.5]}
75. g6+ {[%clk 0:00:16.7]} 75... Kxh6 {[%clk 0:00:13.5]} 76. g7 {[%clk
0:00:17.3]} 76... Kg5 {[%clk 0:00:14.1]} 77. g8=Q+ {[%clk 0:00:18]} 77... Kf5
{[%clk 0:00:11.4]} 78. Qg6+ {[%clk 0:00:15.9]} 78... Ke5 {[%clk 0:00:12.3]} 79.
Kg7 {[%clk 0:00:16.2]} 79... Kd6 {[%clk 0:00:13.2]} 80. Qf7 {[%clk 0:00:15.4]}
1-0

[Event "*** Titled Tuesday Blitz"]
[Site "Chess.com"]
[Date "2021.03.30"]
[Round "4"]
[White "VladDobrov"]
[Black "Isajevsky_Anton"]
[Result "0-1"]
[WhiteElo "2749"]
[BlackElo "2537"]
[TimeControl "180+1"]
[EndTime "10:41:02 PDT"]
[Termination "Isajevsky_Anton won by resignation"]

1. d4 {[%clk 0:03:00.9]} 1... d5 {[%clk 0:02:43]} 2. c4 {[%clk 0:02:55]} 2... e6
{[%clk 0:02:40.3]} 3. Nc3 {[%clk 0:02:53.7]} 3... Be7 {[%clk 0:02:40.4]} 4. Nf3
{[%clk 0:02:52.2]} 4... Nf6 {[%clk 0:02:40]} 5. Bf4 {[%clk 0:02:48]} 5... O-O
{[%clk 0:02:39.1]} 6. e3 {[%clk 0:02:48.4]} 6... Nbd7 {[%clk 0:02:39.2]} 7. a3
{[%clk 0:02:46.4]} 7... a6 {[%clk 0:02:35]} 8. c5 {[%clk 0:02:37.5]} 8... Nh5
{[%clk 0:02:32.1]} 9. Bd3 {[%clk 0:02:32.4]} 9... Nxf4 {[%clk 0:02:25.2]} 10.
exf4 {[%clk 0:02:33.3]} 10... g6 {[%clk 0:02:24.3]} 11. h4 {[%clk 0:02:32.7]}
11... h5 {[%clk 0:02:20.9]} 12. Ne5 {[%clk 0:02:13.7]} 12... Nxe5 {[%clk
0:02:07.5]} 13. fxe5 {[%clk 0:02:13.8]} 13... Bxh4 {[%clk 0:02:05.2]} 14. g4
{[%clk 0:02:13.5]} 14... Qg5 {[%clk 0:01:30.2]} 15. Qe2 {[%clk 0:01:41.7]} 15...
hxg4 {[%clk 0:01:27.8]} 16. Rxh4 {[%clk 0:00:50]} 16... Qxh4 {[%clk 0:01:25.4]}
17. O-O-O {[%clk 0:00:50.9]} 17... Kg7 {[%clk 0:01:14.2]} 18. Rg1 {[%clk
0:00:50.1]} 18... g3 {[%clk 0:01:04.8]} 19. Qf3 {[%clk 0:00:45.1]} 19... gxf2
{[%clk 0:00:54.1]} 20. Rh1 {[%clk 0:00:45.4]} 20... Qg5+ {[%clk 0:00:51.7]} 21.
Kc2 {[%clk 0:00:45.7]} 21... Bd7 {[%clk 0:00:47.7]} 22. Qxf2 {[%clk 0:00:44.4]}
22... Rh8 {[%clk 0:00:47.4]} 23. Rf1 {[%clk 0:00:44]} 23... Raf8 {[%clk
0:00:45.8]} 24. Kb3 {[%clk 0:00:35.4]} 24... Rh3 {[%clk 0:00:40.7]} 25. Bxg6
{[%clk 0:00:20.7]} 25... Qxg6 {[%clk 0:00:26]} 26. Rg1 {[%clk 0:00:20.3]} 26...
Rh6 {[%clk 0:00:26.6]} 27. Qf6+ {[%clk 0:00:19.3]} 27... Kg8 {[%clk 0:00:26.5]}
28. Rxg6+ {[%clk 0:00:19.6]} 28... Rxg6 {[%clk 0:00:27.4]} 29. Qe7 {[%clk
0:00:20.2]} 29... Bc6 {[%clk 0:00:27.6]} 30. Qxc7 {[%clk 0:00:20.4]} 30... Rg4
{[%clk 0:00:27.2]} 31. Ne2 {[%clk 0:00:19.5]} 31... Re4 {[%clk 0:00:26.1]} 32.
Ng3 {[%clk 0:00:19]} 32... Re3+ {[%clk 0:00:26.3]} 33. Kb4 {[%clk 0:00:19.5]}
33... Rxg3 {[%clk 0:00:27.2]} 34. b3 {[%clk 0:00:19.9]} 34... Kg7 {[%clk
0:00:24.4]} 35. Qe7 {[%clk 0:00:19.7]} 35... Rg6 {[%clk 0:00:23.3]} 36. Ka5
{[%clk 0:00:18]} 36... Rh8 {[%clk 0:00:23.8]} 37. a4 {[%clk 0:00:18.4]} 37...
Rh3 {[%clk 0:00:23.7]} 38. b4 {[%clk 0:00:18.8]} 38... Ra3 {[%clk 0:00:23.8]}
39. Kb6 {[%clk 0:00:14.5]} 39... Rxa4 {[%clk 0:00:24]} 40. Kc7 {[%clk
0:00:15.4]} 40... Rxb4 {[%clk 0:00:23]} 41. Kd8 {[%clk 0:00:15.8]} 41... Rxd4
{[%clk 0:00:23]} 42. Qd6 {[%clk 0:00:14.9]} 42... Rf4 {[%clk 0:00:19.8]} 43. Ke7
{[%clk 0:00:14.8]} 43... a5 {[%clk 0:00:17.9]} 44. Qd8 {[%clk 0:00:14.8]} 44...
Kh6 {[%clk 0:00:17.3]} 45. Qh8+ {[%clk 0:00:13.6]} 45... Kg5 {[%clk 0:00:17.6]}
46. Qh2 {[%clk 0:00:12.7]} 46... a4 {[%clk 0:00:17.2]} 47. Qg3+ {[%clk
0:00:11.4]} 47... Kf5 {[%clk 0:00:17.3]} 48. Qh3+ {[%clk 0:00:10.5]} 48... Kxe5
{[%clk 0:00:17.3]} 49. Qe3+ {[%clk 0:00:10.6]} 49... Kf5 {[%clk 0:00:17.5]} 50.
Qh3+ {[%clk 0:00:10.4]} 50... Ke4 {[%clk 0:00:17]} 51. Kd6 {[%clk 0:00:07.5]}
51... d4 {[%clk 0:00:16.2]} 52. Qh1+ {[%clk 0:00:05.6]} 52... Rf3 {[%clk
0:00:12.1]} 53. Qe1+ {[%clk 0:00:04.3]} 53... Re3 {[%clk 0:00:07.8]} 54. Qh1+
{[%clk 0:00:03.9]} 54... Kd3 {[%clk 0:00:08]} 55. Qd1+ {[%clk 0:00:04.5]} 55...
Kc4 {[%clk 0:00:07.5]} 56. Qc1+ {[%clk 0:00:04.7]} 56... Rc3 {[%clk 0:00:06]}
57. Qf1+ {[%clk 0:00:04.2]} 57... d3 {[%clk 0:00:06.3]} 58. Qf4+ {[%clk
0:00:04.9]} 58... Kb3 {[%clk 0:00:06.6]} 59. Qd2 {[%clk 0:00:05.5]} 59... Rg4
{[%clk 0:00:04.6]} 60. Qd1+ {[%clk 0:00:05.3]} 60... Kb2 {[%clk 0:00:03.9]} 61.
Qxg4 {[%clk 0:00:06.2]} 61... d2 {[%clk 0:00:04]} 62. Qb4+ {[%clk 0:00:06.9]}
62... Kc2 {[%clk 0:00:03.8]} 63. Qf4 {[%clk 0:00:02]} 63... d1=Q+ {[%clk
0:00:04]} 64. Kc7 {[%clk 0:00:02.9]} 64... Qd2 {[%clk 0:00:04]} 65. Qxf7 {[%clk
0:00:02.4]} 65... Qd5 {[%clk 0:00:04]} 66. Kb8 {[%clk 0:00:03.3]} 66... Kb3
{[%clk 0:00:04.2]} 67. Qe7 {[%clk 0:00:03.2]} 67... a3 {[%clk 0:00:04.6]} 68.
Qh4 {[%clk 0:00:03.7]} 68... a2 {[%clk 0:00:04.9]} 69. Qe1 {[%clk 0:00:03.8]}
69... Qd3 {[%clk 0:00:04]} 70. Qf2 {[%clk 0:00:03.7]} 70... Rc2 {[%clk
0:00:04.1]} 71. Qe1 {[%clk 0:00:03.5]} 71... Kb2 {[%clk 0:00:04.4]} 72. Qe5+
{[%clk 0:00:04]} 72... Qc3 {[%clk 0:00:04.6]} 73. Qf4 {[%clk 0:00:04.5]} 73...
a1=Q {[%clk 0:00:04.8]} 74. Qf2 {[%clk 0:00:04.4]} 74... Rxf2 {[%clk 0:00:03.8]}
0-1